{"text_format":"1","workbook":"xlsx","n_sheets":6,"sheets":["Main","Procedure","Competencies Table","Lists","Competency Working","Workbook Parameters"],"not_rendered":{"charts":0,"images":2,"macros":1,"external_links":0,"defined_names":42,"comments":0,"pivot_tables":0},"unopened":[],"bounds":{"document_bytes":16777216,"sheet_cells":100000,"rows_first":2000,"rows_last":500,"rows_between":2000,"halvings":0,"cell_chars":16384,"cell_head_chars":4096},"cells_cut":0,"cells_raw":0,"read":"whole","date_system":"1900"}

{"sheet":"Main","index":0,"n_rows":111,"n_cols":14,"rows_kept":111,"cut":false,"hidden":false,"merged":[[14,10,14,12],[16,12,16,13],[90,10,90,13],[92,10,92,13],[94,10,94,13],[49,10,49,13],[20,12,20,13],[50,10,50,13],[85,10,85,13],[74,10,74,13],[51,10,51,13],[52,10,52,11],[71,10,71,13],[61,10,61,11],[66,10,66,11],[65,10,65,13],[104,10,104,13],[97,10,97,13],[98,10,98,13],[99,10,99,13],[100,10,100,13],[101,10,101,13],[102,10,102,13],[103,10,103,13],[76,10,76,13],[77,10,77,13],[95,10,95,13],[96,10,96,13],[87,10,87,13],[21,12,21,13],[21,10,21,11],[67,11,67,13],[68,11,68,13],[69,11,69,13],[53,10,53,11],[54,10,54,11],[55,10,55,11],[56,10,56,11],[57,10,57,11],[58,10,58,11],[59,10,59,11],[58,12,58,13],[59,12,59,13],[57,12,57,13],[56,12,56,13],[63,12,63,13],[63,10,63,11],[55,12,55,13],[54,12,54,13],[53,12,53,13],[62,10,62,11],[62,12,62,13]]}
[null,{"$f":"INDEX(C1:I1,$B$2)","v":0},0,{"$f":"IFERROR(INDEX(DisciplineTable[Discipline Max 6 Permitted],Main!D2),\"\")","v":"Mechanical"},{"$f":"IFERROR(INDEX(DisciplineTable[Discipline Max 6 Permitted],Main!E2),\"\")","v":"Electrical"},{"$f":"IFERROR(INDEX(DisciplineTable[Discipline Max 6 Permitted],Main!F2),\"\")","v":0},{"$f":"IFERROR(INDEX(DisciplineTable[Discipline Max 6 Permitted],Main!G2),\"\")","v":""},{"$f":"IFERROR(INDEX(DisciplineTable[Discipline Max 6 Permitted],Main!H2),\"\")","v":""},{"$f":"IFERROR(INDEX(DisciplineTable[Discipline Max 6 Permitted],Main!I2),\"\")","v":""},null,null,null,{"$f":"IF(AdminAccess=TRUE,\"WARNING: Admin Mode On\",\"\")","v":""},"Contractor Form Version 2.3"]
["Indexes:",{"$f":"MATCH(L17,C1:I1,0)","v":1},0,1,2,3,4,5,6]
[null,{"$f":"INDEX(C3:I3,$B$2)","v":"Yes"},"Yes","Yes","Yes","Yes",null,null,null,null,{"$f":"\"Statutory Appointment Letter - \"&L17","v":"Statutory Appointment Letter - "},null,null,"CF Version 2.3"]
[null,"Yes","Yes","Yes","Yes","Yes"]
[null,"Yes","Yes","Yes","Yes","Yes",null,null,null,null,"* Surname:",null,"* Given Names:"]
[null,"Yes","Yes","Yes","Yes","Yes"]
[null,"Yes","Yes","Yes","Yes","Yes",null,null,null,null,"* Date of Birth (DD/MM/YYYY):",null,"* Occupation:"]
[null,"Yes","Yes","Yes","Yes","Yes"]
[null,"Yes","Yes","Yes","Yes","Yes",null,null,null,null,"* Certifcate of Proficiency or Equiv:",null,"Qualifications - Other:"]
[null,"Yes","Yes","Yes","Yes","Yes"]
[null,"Yes","Yes","Yes","Yes","Yes",null,null,null,null,"* Company:",null,"* Pegasus Number:"]
[null,"Yes","Yes","Yes","Yes","Yes"]
[null,"Yes","Yes","Yes","Yes","Yes",null,null,null,null,"* Date (DD/MM/YYYY):"]
[null,"Yes","Yes","Yes","Yes","Yes"]
[null,"Yes","Yes","Yes","Yes","Yes",null,null,null,null,"* I confirm I have read and prepared this document and the supporting attachments for review as per the requirements of Mt Arthur Coal. Failure to do this may result in rejection of appointment. (Click \"Show Requirements & Quick Reference Guide\" for detailed information)"]
[null,"Yes","Yes","Yes","Yes","Yes",null,null,null,null,{"$f":"IF(AllMandartoryFieldsCompleted(),\"\",\"Please complete all fields marked as mandatory (*) above.\")","v":"Please complete all fields marked as mandatory (*) above."}]
[null,"Yes","Yes","Yes","Yes","Yes",null,null,null,null,"Select Discipline:"]
[null,"No","No","Yes","Yes","Yes"]
[null,"No","No","No","No","No",null,null,null,null,"Select Electrical Work Area(s):"]
[null,"No","No","No","No","No"]
[null,"No","No","Yes","Yes","Yes",null,null,null,null,"Select Competency Area:",null,"Note: Competencies starting with an asterisk are a mandatory requirement."]
[null,{"$f":"INDEX(C22:I22,$B$2)","v":"No"},"No","Yes","No","Yes",null,null,null,null,"List below details the minimum mandatory Requirements for this Competency Area:",null,"This Competency Area allows the below list of works to be completed onsite:"]
["Formula Changes",{"$f":"IF($K23=\"\",\"No\",\"Yes\")","v":"No"}]
[null,{"$f":"IF($K24=\"\",\"No\",\"Yes\")","v":"No"},null,null,null,null,null,null,null," "]
[null,"No"]
[null,"No",null,null,null,null,null,null,null," "]
[null,"No"]
[null,"No"]
[null,"No"]
[null,"No"]
[null,"No"]
[null,"No"]
[null,"No"]
[null,"No"]
[null,"No"]
[null,"No"]
[null,"No"]
[null,"No"]
[null,"No"]
[null,"No"]
[null,"No"]
[null,"No"]
[null,"No"]
[null,"No"]
[null,"No"]
[null,"No"]
[null,"No"]
["Formula Changes",{"$f":"INDEX(C48:I48,$B$2)","v":"No"},"No","Yes","Yes","Yes"]
[null,"No","No","Yes","No","No",null,null,null,null,{"$f":"IF(SupervisionRequired=\"\",\"Please select competency area above before continuing\",SupervisionRequired&\" supervision is required for this area of competency\")","v":"Please select competency area above before continuing"}]
[null,"No","No","Yes","No","No",null,null,null,null,{"$f":"IFERROR(VLOOKUP('Workbook Parameters'!B4,SupervisionTable[],2,0),\" \")","v":" "}]
["Formula Changes",{"$f":"IF(CompetencyAreaInput=\"\",\"No\",INDEX(C51:I51,$B$2))","v":"No"},"No",{"$f":"IF(AllAccepted,\"No\",\"Yes\")","v":"Yes"},"Yes","Yes","Yes","Yes","Yes",null,"Not all mandatory competencies have been selected above. This person is currently not permitted to work onsite."]
["Formula Changes",{"$f":"IF(AllAccepted,INDEX(C52:I52,$B$2),\"No\")","v":"No"},"No","Yes","No","Yes"]
[null,{"$f":"IF(AllAccepted,INDEX(C53:I53,$B$2),\"No\")","v":"No"},"No","No","Yes","No",null,null,null,null,"Table 1 - Work Areas (MAC USE ONLY):"]
[null,"No","No","No","Yes","No",null,null,null,null,"Statutory Electrical Engineers Delegate",null,"Unrestricted Electrical Operating Area Access (LV)"]
[null,"No","No","No","Yes","No",null,null,null,null,"Unrestricted Electrical Access to High Voltage Areas (HV)",null,"High Voltage Authorised Permit Holder"]
[null,"No","No","No","Yes","No",null,null,null,null,"Electric Drive Truck High Voltage Authorised Isolator",null,"Electric Drive Truck High Voltage Authorised Permit Holder"]
[null,"No","No","No","Yes","No",null,null,null,null,"Safety Observer",null,"Live Testing"]
[null,"No","No","No","Yes","No",null,null,null,null,"Test and Tag",null,"Access & Mark Up Electrical Drawings"]
[null,"No","No","No","Yes","No",null,null,null,null,"Permanently Adjust Protection Settings After Approval of the Electrical Engineer in Charge",null,"Sign Permits to Dig (Electrical)"]
[null,{"$f":"IF(AllAccepted,INDEX(C60:I60,$B$2),\"No\")","v":"No"},"No","No","Yes","No",null,null,null,null,"Investigate Indicated Protection Trips and Resets"]
[null,"No","No","No","Yes","No"]
[null,{"$f":"IF(AllAccepted,INDEX(C62:I62,$B$2),\"No\")","v":"No"},"No","No","Yes","No",null,null,null,null,"Table 2 - Work Areas (MAC USE ONLY):"]
[null,"No","No","No","Yes","No",null,null,null,null,"Mine",null,"Coal Handling Preparation Plant"]
[null,"No","No","No","Yes","No",null,null,null,null,"Engineering",null,"Limited To:"]
[null,{"$f":"IF(AllAccepted,INDEX(C65:I65,$B$2),\"No\")","v":"No"},"No","No","Yes","No"]
[null,{"$f":"IF(AllAccepted,INDEX(C66:I66,$B$2),\"No\")","v":"No"},"No","No","Yes","No",null,null,null,null,"During this authorisation period you will report directly to a MAC Electrical Supervisor prior to, during and at the completion of any electrical work. Your level of Supervision during this time shall be as per Table 3 below."]
[null,{"$f":"IF(AllAccepted,INDEX(C67:I67,$B$2),\"No\")","v":"No"},"No","No","Yes","No",null,null,null,null,"Table 3 - Supervision (MAC USE ONLY):"]
[null,"No","No","No","Yes","No",null,null,null,null,"Direct Supervision","Direct supervision is where a person is under the immediate control and direction of the MAC supervisor of electrical work who must be in attendance at all times."]
[null,"No","No","No","Yes","No",null,null,null,null,"General Supervision","Requires attendance by the MAC supervisor in the general work area. The nature of the work, the competence of the person, and understanding of the work needs to be considered to ensure safe and satisfactory work practices are followed when determining the frequency of supervision attendance on the job."]
[null,{"$f":"IF(AllAccepted,INDEX(C70:I70,$B$2),\"No\")","v":"No"},"No","No","Yes","No",null,null,null,null,"Supervisor","A person who has acquired through training, qualifications or experience the knowledge and skills to carry out an electrical task without supervision and may supervise others who are conducting electrical work. Authorised by the Qualified electrical Engineer an Electrical Supervisor shall ensure that all work under their control is conducted safely and conforms to all relevant standards and legislation."]
[null,{"$f":"IF(AllAccepted,INDEX(C71:I71,$B$2),\"No\")","v":"No"},"No","No","Yes","No"]
[null,{"$f":"IF(AllAccepted,INDEX(C72:I72,$B$2),\"No\")","v":"No"},"No","Yes","Yes","Yes",null,null,null,null,"Acceptance of this appointment confirms acceptance of the obligations, duties and requirements imposed by Mt Arthur Coal.  All work is to conform to the Australian Standards, and the Mt Arthur Coal standards and procedures which are available on Ipick or via a Mt Arthur Coal Supervisor. It is the responsibility of the individual to ensure that their competencies remain valid.\n\nI confirm that I accept this appointment  for Mt Arthur Coal  and that the information provided is correct.  A copy of my Certificate, Transcript and Letter of Competency are attached."]
[null,{"$f":"IF(AllAccepted,INDEX(C73:I73,$B$2),\"No\")","v":"No"},"No","No","No","No"]
[null,"No","No","No","No","No"]
[null,"No","No","Yes","No","Yes",null,null,null,null,"You have been deemed competent and are hereby authorised to carry out work in which you are familiar at Mt Arthur Coal in accordance with MAC-MEC-STD-013\n"]
[null,{"$f":"IF(AllAccepted,INDEX(C76:I76,$B$2),\"No\")","v":"No"},"No","No","No","No"]
[null,"No","No","No","Yes","No",null,null,null,null,"You have been deemed competent and are hereby authorised to carry out electrical work as a Authorised Electrical Person in the areas which are marked \"Approved\" above for works at Mt Arthur Coal Mine."]
[null,"No","No","No","Yes","No",null,null,null,null,{"$f":"\"This authorisation will be for the duration of twelve (12) months starting on \"& TEXT(L13,\"dd mmmm yyyy\")&\".\"","v":"This authorisation will be for the duration of twelve (12) months starting on 00 January 1900."}]
[null,{"$f":"IF(AllAccepted,INDEX(C79:I79,$B$2),\"No\")","v":"No"},"No","No","Yes","No"]
[null,{"$f":"IF(AllAccepted,INDEX(C80:I80,$B$2),\"No\")","v":"No"},"No","Yes","Yes","Yes",null,null,null,null,"Signed by: ",null,null,"Date  ____________________"]
[null,{"$f":"IF(AllAccepted,INDEX(C81:I81,$B$2),\"No\")","v":"No"},"No","Yes","Yes","Yes",null,null,null,null,null,{"$f":"N5&\" \"&L5&\" - \"&N11","v":"  - "}]
[null,{"$f":"IF(AllAccepted,INDEX(C82:I82,$B$2),\"No\")","v":"No"},"No","No","Yes","No"]
[null,"No","No","Yes","Yes","Yes",null,null,null,null,"Signed by: "]
[null,"No","No","Yes","No","Yes",null,null,null,null,null,"Dwaine Jones, Principal Statutory Mechanical Engineer"]
[null,"No","No","No","Yes","No",null,null,null,null,null,"Brendan Mudd, Principal Statutory Electrical Engineer"]
[null,"No","No","Yes","No","Yes",null,null,null,null,"This appointment is not valid until it has been uploaded into Pegasus against (Supervisor.Authorised.Category 3 Lifting Operations ID 40385) for category 3 lift supervisors and against (Mechanical.Statutory Appointment.Letter of Appointment  ID 52224) for all other appointments .  This is your Company's responsibility to organise and must be done prior to commencing at Mt Arthur Coal."]
[null,{"$f":"IF(AllAccepted,INDEX(C87:I87,$B$2),\"No\")","v":"No"},"No","Yes","No","Yes"]
[null,{"$f":"IF(AllAccepted,INDEX(C88:I88,$B$2),\"No\")","v":"No"},"No","No","Yes","No",null,null,null,null,"This appointment is not valid until it has been uploaded into Pegasus (Electrical.Authorised.Letter of Authorisation - Contractor  ID 56449) .  This is your Company's responsibility to organise and must be done prior to commencing at Mt Arthur Coal."]
[null,"No","No","Yes","Yes","Yes"]
[null,"No","No","No","Yes","No"]
[null,"No","No","No","Yes","No",null,null,null,null,"Electrical Worker Declaration of Understanding"]
[null,"No","No","No","Yes","No"]
[null,"No","No","No","Yes","No",null,null,null,null,"The following rules apply to electrical work at the Mt Arthur open cut."]
[null,"No","No","No","Yes","No"]
[null,"No","No","No","Yes","No",null,null,null,null,"1. No Live Work (excluding testing) is to be carried out on live electrical conductors at voltages that exceed 50 volts AC or 120V DC (ripple free)."]
[null,"No","No","No","Yes","No",null,null,null,null,"2. “Test before Touch” is mandatory. No electrical worker is to touch a conductor that has the potential to be energised until that person has tested the conductor to ensure it is de-energised and has taken steps to ensure it will stay de-energised by means of isolation and the application of personal locks. All test equipment shall be tested prior to use and verified after the testing has taken place."]
[null,"No","No","No","Yes","No",null,null,null,null,"3. “Live testing” or testing for a known voltage above Extra Low Voltage (ELV) is the last resort. Refer MAC-ELC-PRO-013 Energised Fault Finding of LV Electrical Circuits"]
[null,"No","No","No","Yes","No",null,null,null,null,"4. High Voltage systems shall not be contacted until that person has verified the isolation, sighted that the circuit is effectively earthed, has also taken steps to ensure it will stay de-energised by means of isolation, have applied personal locks and a Access Permit issued. Only High Voltage authorised persons can isolate High Voltage. (Note: Any circuits above 1000 VAC or 1500VDC are to be considered High Voltage)."]
[null,"No","No","No","Yes","No",null,null,null,null,"5. Personal protective devices shall not be bridged, over-ridden or forced unless controls that are equal to or exceed the original protection level are put in place .E.g. Emergency stops, conveyor lanyards. "]
[null,"No","No","No","Yes","No",null,null,null,null,"6. Electrical Protection shall not be adjusted, modified, bridged, overridden, or forced without the direct consent of the Qualified Electrical Engineer or his delegate."]
[null,"No","No","No","Yes","No",null,null,null,null,"7. ARC Flash warnings shall be followed with all personnel wearing correct category PPE and applying all appropriate controls. "]
[null,"No","No","No","Yes","No",null,null,null,null,"8. All work shall meet good engineering practice. All electrical work shall be completed to meet any MAC standards, Australian standards, Codes of Practice, legislation. If relevant International standards are to be used then their specific application is to be approved by the Qualified Electrical Engineer or their Delegate."]
[null,"No","No","No","Yes","No",null,null,null,null,"9. Electrical enclosures, switchboards, switch rooms shall remain secured and locked at all times when not being worked upon. When being worked upon controls shall be put in place to restrict access to unauthorised personnel."]
[null,"No","No","No","Yes","No",null,null,null,null,"10. Any person conducting work or assisting in work on electrical apparatus/ installations in any capacity or role (including work upon disconnected apparatus, Extra Low Voltage circuits, data and software) shall be authorised in writing by the Statutory Electrical Engineer to conduct that work. "]
[null,"No","No","No","Yes","No",null,null,null,null,"I fully understand the above and will comply with these requirements when carrying out work at the Mt Arthur open cut. "]
[null,"No","No","No","Yes","No"]
[null,"No","No","No","Yes","No"]
[null,"No","No","No","Yes","No",null,null,null,null,{"$f":"\"Full Name: \"& N5&\" \"&L5","v":"Full Name:  "},"Date:________________"]
[null,"No","No","No","Yes","No",null,null,null,null,{"$f":"\"Company: \"& L11","v":"Company: "}]
[null,"No","No","No","Yes","No",null,null,null,null,"Signature:______________"]
[null,"No","No","No","Yes","No"]

{"sheet":"Procedure","index":1,"n_rows":0,"n_cols":0,"rows_kept":0,"cut":false,"hidden":false,"merged":[]}

{"sheet":"Competencies Table","index":2,"n_rows":39,"n_cols":44,"rows_kept":39,"cut":false,"hidden":true,"merged":[]}
[null,null,null,null,null,null,null,null,null,null,null,null,null,null,null,null,"k"]
[]
[]
[]
["Competency Name:",null,"Fitter - Type 1","Fitter - Type 1B","Fitter - Type 2","Fitter - Type 2B","Fitter - Type 3","Fitter - Type 3B","Fitter - Type 4","Fitter - Type 4b","Plant Mechanic - Type 1","Plant Mechanic - Type 1B","Boilermaker","Fabricator - Type 1","Fabricator - Type 2","High Pressure Hosing","Automotive Mechanic","Motor Mechanic","Supervisor - Type 1","Supervisor - Type 2","Supervisor - Type 3","Apprentice","Fire Systems","Tyre Technician","OEM Technician","Category 3 Lift Supervisor","Specialist / Other","Statutory Electrical Engineer","Electrical Engineer","Specialist Engineer","Electrical Supervisor","High Voltage","Electrical HV Permit Holder/Verifi","Low Voltage   ","Extra Low Voltage ","Electrical Technician","Fibre Optics/Data","Auto Electrical","Refrigeration/Air Conditioning","Specialist /Other","Overhead Line Worker","Cable Repairers","Electrical Control Systems - Software and Coding","Apprentice/Trades Assistant"]
["Discipline:",null,"Mechanical","Mechanical","Mechanical","Mechanical","Mechanical","Mechanical","Mechanical","Mechanical","Mechanical","Mechanical","Mechanical","Mechanical","Mechanical","Mechanical","Mechanical","Mechanical","Mechanical","Mechanical","Mechanical","Mechanical","Mechanical","Mechanical","Mechanical","Mechanical","Mechanical","Electrical","Electrical","Electrical","Electrical","Electrical","Electrical","Electrical","Electrical","Electrical","Electrical","Electrical","Electrical","Electrical","Electrical","Electrical","Electrical","Electrical"]
["Level of Supervision Required:",null,"General","General","General","General","General","General","General","General","General","General","General","General","General","General","General","General","General","General","General","General","General","General","General","General","General","General","General","General","General","General","General","General","General","General","General","General","General","General","General","General","General","Direct"]
["Competencies:",null,"* Statement of Competency","* Statement of Competency","* Statement of Competency","* Statement of Competency","* Statement of Competency with min. 2 years experience in earthmoving equipment","* Statement of Competency with min. 2 years experience in earthmoving equipment","* Statement of Competency with min. 2 years experience in earthmoving equipment","* Statement of Competency with min. 2 years experience in earthmoving equipment","* Statement of Competency","* Statement of Competency","* Statement of Competency","* Statement of Competency","* Statement of Competency","* Statement of Competency","* Statement of Competency","* Statement of Competency","* Statement of Competency","* Statement of Competency","* Work cover license for intermediate rigging","* Statement of Competency","* Statement of Competency","* Statement of Competency","* Statement of Competency","* Statement of Competency","* Statement of Competency","* Statement of Competency","* Statement of Competency","* Statement of Competency","* Statement of Competency","* Statement of Competency","* Statement of Competency","* Statement of Competency","* Statement of Competency","* Statement of Competency","* Statement of Competency","* Statement of Competency","* Statement of Competency","* Statement of Competency","* Statement of Competency","* Statement of Competency","* Statement of Competency","* Statement of Competency"]
[null,null,"T Basic Structural","T Basic Structural","T Basic Structural","T Basic Structural","T Ancillary Plant. Pumps, Lighting towers etc.","T Ancillary Plant. Pumps, Lighting towers etc.","T OEM Technician","T OEM Technician","T Ancillary Plant. Pumps, Lighting towers etc.","T Ancillary Plant. Pumps, Lighting towers etc.","T Advanced welding","T Fabrication","T Advanced welding","T Assembly of Hydraulic & Pneumatic hoses","T Automotive Mechanic (Light Vehicle)","T Ancillary Plant. Pumps, Lighting towers etc.","T Provide Personnel Supervision","T Provide Personnel Supervision","T Supervise Category 3 Lifting Operations","T 1st Year - NOT ALLOWED ONSITE","T Service & install portable fire extinguishers and fire blankets","T Remove, inspect and fit heavy vehicle wheel assemblies","T OEM works as Approved by Mechanical Statutory Engineer","T Supervise category 3 lifts","T Specialist / Other works as Approved by Mechanical Statutory Engineer","Relevant Trade/Engineering Certificate","Relevant Trade/Engineering Certificate","Relevant Trade/Engineering Certificate","* Relevant Trade/Engineering Certificate","* Relevant Trade/Engineering Certificate","Relevant Trade/Engineering Certificate","* Relevant Trade/Engineering Certificate","* Relevant Trade/Engineering Certificate","* Relevant Trade/Engineering Certificate","Relevant Trade/Engineering Certificate","* Relevant Trade/Engineering Certificate","* Relevant Trade/Engineering Certificate","* Qualifications \\ Internal Training","* Relevant Trade/Engineering Certificate","Relevant Trade/Engineering Certificate","Relevant Trade/Engineering Certificate","Relevant Trade/Engineering Certificate"]
[null,null,"* Certificate of Proficiency or Equivalent (Provide Transcript)","* Certificate of Proficiency or Equivalent (Provide Transcript)","* Certificate of Proficiency or Equivalent (Provide Transcript)","* Certificate of Proficiency or Equivalent (Provide Transcript)","* Certificate of Proficiency or Equivalent (Provide Transcript)","* Certificate of Proficiency or Equivalent (Provide Transcript)","* Certificate of Proficiency or Equivalent (Provide Transcript)","* Certificate of Proficiency or Equivalent (Provide Transcript)","* Certificate of Proficiency or Equivalent (Provide Transcript)","* Certificate of Proficiency or Equivalent (Provide Transcript)","* Certificate of Proficiency or Equivalent (Provide Transcript)","* Certificate of Proficiency or Equivalent (Provide Transcript)","* Certificate of Proficiency or Equivalent (Provide Transcript)","* Qualifications \\ Internal Training","* Certificate of Proficiency or Equivalent (Provide Transcript)","* Certificate of Proficiency or Equivalent (Provide Transcript)","* Apply risk management or equivalent (S1)","* Apply risk management or equivalent (S1)","* Experience in crane operations being supervised","* Indenture Papers","* Qualifications \\ Internal Training","* Qualifications \\ Internal Training","* Qualifications \\ Internal Training","* Work cover license for intermediate rigging","* Qualifications \\ Internal Training","* Engineering Qualifications Recognised by Engineers Australia","* Engineering Qualifications Recognised by Engineers Australia","* Engineering Qualifications Recognised by Engineers Australia","Engineering Qualifications Recognised by Engineers Australia","Engineering Qualifications Recognised by Engineers Australia","Engineering Qualifications Recognised by Engineers Australia","Engineering Qualifications Recognised by Engineers Australia","Engineering Qualifications Recognised by Engineers Australia","Engineering Qualifications Recognised by Engineers Australia","Engineering Qualifications Recognised by Engineers Australia","Engineering Qualifications Recognised by Engineers Australia","Engineering Qualifications Recognised by Engineers Australia",null,"Engineering Qualifications Recognised by Engineers Australia","Engineering Qualifications Recognised by Engineers Australia","* Engineering Qualifications Recognised by Engineers Australia","Engineering Qualifications Recognised by Engineers Australia"]
[null,null,"T Fixed Plant","T Fixed Plant","T Fixed Plant","T Fixed Plant","T Automotive Electrical - Up to 24Volts","T Automotive Electrical - Up to 24Volts","T Mobile Plant Restricted","T Mobile Plant Restricted","T Automotive Electrical - Up to 24Volts","T Automotive Electrical - Up to 24Volts","T Intermediate welding","T Basic Structural","T Intermediate welding","T Automotive Electrical - Up to 24Volts","T Ancillary Plant","T Automotive Electrical - Up to 24Volts","T  ","T Provide Technical Supervision","T ","T 2nd Year - NOT ALLOWED ONSITE","T Service & Inspect and service delivery lay flat fire hoses and nozzles","T Remove, inspect, repair and fit tyres and tubes (heavy)",null,"T ","T ","* DII Certificate of Competence or Chartered Status","DII Certificate of Competence or Chartered Status","DII Certificate of Competence or Chartered Status","DII Certificate of Competence or Chartered Status","DII Certificate of Competence or Chartered Status","DII Certificate of Competence or Chartered Status","DII Certificate of Competence or Chartered Status","DII Certificate of Competence or Chartered Status","DII Certificate of Competence or Chartered Status","DII Certificate of Competence or Chartered Status","DII Certificate of Competence or Chartered Status","DII Certificate of Competence or Chartered Status",null,"DII Certificate of Competence or Chartered Status","DII Certificate of Competence or Chartered Status","DII Certificate of Competence or Chartered Status","DII Certificate of Competence or Chartered Status"]
[null,null,"* Perform engineering measurements","* Perform engineering measurements","* Perform engineering measurements","* Perform engineering measurements","* Test, repair and overhaul diesel fuel injection systems and compression ignition .","* Test, repair and overhaul diesel fuel injection systems and compression ignition .","* Repair hydrostatic and manual transmissions.","* Repair hydrostatic and manual transmissions.","* Test, repair and overhaul diesel fuel injection systems and compression ignition .","* Test, repair and overhaul diesel fuel injection systems and compression ignition .","* MDG25 Safe Cutting and Welding (Valid within 5 years)","* Perform engineering measurements","*MDG25 (Valid within 5 years)","T ","* Mechanical Vehicle Repair Industry Certificate (MVRIC)","T  ","* Conduct safety & health investigations or equivalent (S2)","* Conduct safety & health investigations or equivalent (S2)","* Been assessed through ‘due process’ in relation to preparation of lift\ndocumentation and supervision","T ","T ","T ",null,"* Experience in crane operations being supervised","T ","Recognised Training","Recognised Training","Recognised Training","* Recognised Training","* Recognised Training","* Recognised Training","Recognised Training","Recognised Training","* Recognised Training","* Recognised Training","* Recognised Training","* Recognised Training",null,"* Recognised Training","* Recognised Training","* Recognised Training","* Recognised Training"]
[null,null,"T Maintain & Overhaul Mechanical Equipment (Non Mobile Plant)","T Maintain & Overhaul Mechanical Equipment (Non Mobile Plant)","T Hydraulic Work","T Hydraulic Work","T Automotive Light Vehicle","T Automotive Light Vehicle","T ","T ","T Automotive Light Vehicle","T Automotive Light Vehicle","T General welding","T Fixed Plant","T General welding","T Manufacture Fluid Conveying System Conductors","T Maintain and overhaul mechanical equipment (Non Mobile plant)","T Automotive Light Vehicle","T   ","T ",null,"T 3rd Year ","T Hydrostatic test portable and wheeled CO2 fire extinguishers","T Select tyres and rims for specific applications (light)",null,"T ","T ","Qualified Supervisors Certificate","Qualified Supervisors Certificate","Qualified Supervisors Certificate","* Qualified Supervisors Certificate","* Qualified Supervisors Certificate","Qualified Supervisors Certificate","* Qualified Supervisors Certificate","Qualified Supervisors Certificate","Qualified Supervisors Certificate","Qualified Supervisors Certificate","Qualified Supervisors Certificate","* Qualified Supervisors Certificate",null,"Qualified Supervisors Certificate","Qualified Supervisors Certificate","Qualified Supervisors Certificate","Qualified Supervisors Certificate"]
[null,null,"* Perform computations","* Perform computations","* Perform computations","* Perform computations","* Diagnose and repair mobile plant final drive assemblies.","* Diagnose and repair mobile plant final drive assemblies.","* Repair hydraulic systems and fluid power controls.","* Repair hydraulic systems and fluid power controls.","* Diagnose and repair mobile plant final drive assemblies.","* Diagnose and repair mobile plant final drive assemblies.","* Perform engineering measurements","* Perform computations","* Perform engineering measurements","T  ","T ","T  ","* Communicate information or equivalent (S3)","* Communicate information or equivalent (S3)",null,"T ","T  ","T ",null,"* Been assessed through 'due process' in relation to preparation of lift documentation ","T ","Australian Communication and Media Authority Open","Australian Communication and Media Authority Open","Australian Communication and Media Authority Open","Australian Communication and Media Authority Open","Australian Communication and Media Authority Open","Australian Communication and Media Authority Open","Australian Communication and Media Authority Open","Australian Communication and Media Authority Open","Australian Communication and Media Authority Open","* Australian Communication and Media Authority Open","Australian Communication and Media Authority Open","Australian Communication and Media Authority Open",null,"Australian Communication and Media Authority Open","Australian Communication and Media Authority Open","Australian Communication and Media Authority Open","Australian Communication and Media Authority Open"]
[null,null,"T Service Fixed Plant","T Service Fixed Plant","T Pneumatic Work","T Pneumatic Work","T Basic Structural","T Basic Structural","T ","T ","T Basic Structural","T Basic Structural","T Basic Structural","T ","T Basic Structural","T Repair Faulty Conductors and Assemblies","T Basic Structural","T Basic Structural","T  ","T ",null,"T 4th Year","T Inspect and test hinged fire and smoke doors","T Select heavy vehicle tyres and rims for specific applications",null,"T ","T ","Refrigerant Handling Licence","Refrigerant Handling Licence","Refrigerant Handling Licence","Refrigerant Handling Licence","Refrigerant Handling Licence","Refrigerant Handling Licence","Refrigerant Handling Licence","Refrigerant Handling Licence","Refrigerant Handling Licence","Refrigerant Handling Licence","Refrigerant Handling Licence","* Refrigerant Handling Licence",null,"Refrigerant Handling Licence","Refrigerant Handling Licence","Refrigerant Handling Licence","Refrigerant Handling Licence"]
[null,null,"* Maintain and overhaul mechanical equipment","* Maintain and overhaul mechanical equipment","* Maintain and overhaul mechanical equipment","* Maintain and overhaul mechanical equipment","* Diagnose and repair power shift and automatic transmissions.","* Diagnose and repair power shift and automatic transmissions.","* Service and maintain fluid power systems for mobile plant","* Service and maintain fluid power systems for mobile plant","* Diagnose and repair power shift and automatic transmissions.","* Diagnose and repair power shift and automatic transmissions.","* Perform computations","* Perform general machining","* Perform computations","T ","T ","T  ","* Carry out the risk management process or equivalent (G2)","* Carry out the risk management process or equivalent (G2)",null,null,"T  ","T ",null,"T and supervision","T ","Training Competency for AS4761 (Cable Repair)","Training Competency for AS4761 (Cable Repair)","Training Competency for AS4761 (Cable Repair)","Training Competency for AS4761 (Cable Repair)","Training Competency for AS4761 (Cable Repair)","Training Competency for AS4761 (Cable Repair)","Training Competency for AS4761 (Cable Repair)","Training Competency for AS4761 (Cable Repair)","Training Competency for AS4761 (Cable Repair)","Training Competency for AS4761 (Cable Repair)","Training Competency for AS4761 (Cable Repair)","Training Competency for AS4761 (Cable Repair)",null,"Training Competency for AS4761 (Cable Repair)","* Training Competency for AS4761 (Cable Repair)","Training Competency for AS4761 (Cable Repair)","Training Competency for AS4761 (Cable Repair)"]
[null,null,"T Mechanical Drive/Transmission (Non Mobile Plant)","T Mechanical Drive/Transmission (Non Mobile Plant)","T Maintain & Overhaul Mechanical Equipment (Non Mobile Plant)","T Maintain & Overhaul Mechanical Equipment (Non Mobile Plant)","T Fabrication","T Fabrication","T ","T ","T Fabrication","T Fabrication","T Fixed Plant","T ","T Fixed Plant","T Check/Test Conductor Assemblies","T Automotive Light Vehicle","T Automotive Light Vehicle registered",null,"T  ",null,null,"T Service & Inspect, test and replace fire hose reels","T Remove, inspect, repair & fit tyres & tubes (light)",null,"T ","T ","* * * MAC Electrical Induction Package","* MAC Electrical Induction Package","* MAC Electrical Induction Package ","* MAC Electrical Induction Package ","* MAC Electrical Induction Package ","* MAC Electrical Induction Package ","* MAC Electrical Induction Package ","* MAC Electrical Induction Package ","* MAC Electrical Induction Package ","* MAC Electrical Induction Package ","* MAC Electrical Induction Package ","* MAC Electrical Induction Package ",null,"* MAC Electrical Induction Package ","* MAC Electrical Induction Package ","* MAC Electrical Induction Package ","* MAC Electrical Induction Package "]
[null,null,"* Perform fault diagnosis, installation and removal of bearings","* Perform fault diagnosis, installation and removal of bearings","* Perform fault diagnosis, installation and removal of bearings","* Perform fault diagnosis, installation and removal of bearings","* Repair hydrostatic and manual transmissions.","* Repair hydrostatic and manual transmissions.","* Diagnose and repair mobile plant final drive assemblies.","* Diagnose and repair mobile plant final drive assemblies.","* Repair hydrostatic and manual transmissions.","* Repair hydrostatic and manual transmissions.","* Interpret technical drawing","* Interpret technical drawing","* Perform general machining",null,"T ","T  ",null,"* Certificate of Proficiency (Provide Transcript)",null,null,"T ","T ",null,null,"T ","* CPR (Valid within 12 Months)","* CPR (Valid within 12 Months)","CPR (Valid within 12 Months)","* CPR (Valid within 12 Months)","* CPR (Valid within 12 Months)","CPR (Valid within 12 Months)","* CPR (Valid within 12 Months)","* CPR (Valid within 12 Months)","* CPR (Valid within 12 Months)","* CPR (Valid within 12 Months)","CPR (Valid within 12 Months)","* CPR (Valid within 12 Months)",null,"* CPR (Valid within 12 Months)","* CPR (Valid within 12 Months)","* CPR (Valid within 12 Months)","* CPR (Valid within 12 Months)"]
[null,null,"T Service Mine Plant And Equipment","T Service Mine Plant And Equipment","T Service Fixed Plant","T Service Fixed Plant","T Diesel engines","T Diesel engines","T ","T ","T Diesel engines","T Diesel engines","T Fabrication","T ","T Fabrication",null,"T Engine Work (ancillary / Small engines)","T Maintain and overhaul mechanical equipment (Non mobile plant)",null,null,null,null,"T Inspect and test control and indicating equipment","T Remove, inspect and fit light vehicle wheel assemblies",null,null,"T ","* Low Voltage Rescue (Valid Within 12 Months)","* Low Voltage Rescue (Valid Within 12 Months)","Low Voltage Rescue (Valid Within 12 Months)","* Low Voltage Rescue (Valid Within 12 Months)","* Low Voltage Rescue (Valid Within 12 Months)","Low Voltage Rescue (Valid Within 12 Months)","* Low Voltage Rescue (Valid Within 12 Months)","* Low Voltage Rescue (Valid Within 12 Months)","Low Voltage Rescue (Valid Within 12 Months)","Low Voltage Rescue (Valid Within 12 Months)","Low Voltage Rescue (Valid Within 12 Months)","* Low Voltage Rescue (Valid Within 12 Months)",null,"* Low Voltage Rescue (Valid Within 12 Months)","* Low Voltage Rescue (Valid Within 12 Months)","* Low Voltage Rescue (Valid Within 12 Months)","* Low Voltage Rescue (Valid Within 12 Months)"]
[null,null,"* Repair and fit engineering components","* Repair and fit engineering components","* Repair and fit engineering components","* Repair and fit engineering components","* Repair hydraulic systems and fluid power controls.","* Repair hydraulic systems and fluid power controls.","* Inspect, service and repair tracked type drive and support systems","* Inspect, service and repair tracked type drive and support systems","* Repair hydraulic systems and fluid power controls.","* Repair hydraulic systems and fluid power controls.","* Perform routine manual metal arc welding","* Maintain and overhaul mechanical equipment","* Interpret technical drawing",null,"T ","T  ",null,null,null,null,"T ",null,null,null,null,"* Experience Prior to Authorisation ","Experience Prior to Authorisation ","Experience Prior to Authorisation ","Experience Prior to Authorisation ","* Experience Prior to Authorisation ","Experience Prior to Authorisation ","* Experience Prior to Authorisation ","Experience Prior to Authorisation ","Experience Prior to Authorisation ","Experience Prior to Authorisation ","Experience Prior to Authorisation ","Experience Prior to Authorisation ",null,"Experience Prior to Authorisation ","Experience Prior to Authorisation ","Experience Prior to Authorisation ","Experience Prior to Authorisation "]
[null,null,"T Transmission Work (Non EME)","T Transmission Work (Non EME)","T Mechanical Drive/Transmission (Non Mobile Plant)","T Mechanical Drive/Transmission (Non Mobile Plant)","T Engine work (ancillary / small engines)","T Engine work (ancillary / small engines)","T ","T ","T Engine work (ancillary / small engines)","T Engine work (ancillary / small engines)","T ","T ","T ",null,"T Automotive Light Vehicle Registered","T Mechanical drive / transmission (Non mobile plant)",null,null,null,null,"T Install and service portable foam liquid proportioning equipment",null,null,null,null,"* Experience Required to Maintain Authorisation ","Experience Required to Maintain Authorisation ","Experience Required to Maintain Authorisation ","Experience Required to Maintain Authorisation ","* Experience Required to Maintain Authorisation ","Experience Required to Maintain Authorisation ","Experience Required to Maintain Authorisation ","Experience Required to Maintain Authorisation ","Experience Required to Maintain Authorisation ","Experience Required to Maintain Authorisation ","Experience Required to Maintain Authorisation ","Experience Required to Maintain Authorisation ",null,"Experience Required to Maintain Authorisation ","Experience Required to Maintain Authorisation ","Experience Required to Maintain Authorisation ","Experience Required to Maintain Authorisation "]
[null,null,"* Maintain and repair mechanical drives and mechanical transmission assemblies","* Maintain and repair mechanical drives and mechanical transmission assemblies","* Maintain and repair mechanical drives and mechanical transmission assemblies","* Maintain and repair mechanical drives and mechanical transmission assemblies","* Diagnose and repair mobile plant braking systems","* Diagnose and repair mobile plant braking systems",null,"* MDG25","* Diagnose and repair mobile plant braking systems","* Diagnose and repair mobile plant braking systems","* Weld using manual metal arc welding process","* Perform fault diagnosis, installation and removal of bearings","* Maintain and overhaul mechanical equipment",null,"T ","T ",null,null,null,null,"T ",null,null,null,null,"* Demonstrated Knowledge","* Demonstrated Knowledge","* Demonstrated Knowledge","* Demonstrated Knowledge","* Demonstrated Knowledge","* Demonstrated Knowledge","* Demonstrated Knowledge","* Demonstrated Knowledge","* Demonstrated Knowledge","Demonstrated Knowledge","Demonstrated Knowledge","Demonstrated Knowledge",null,"Demonstrated Knowledge","Demonstrated Knowledge","* Demonstrated Knowledge","Demonstrated Knowledge"]
[null,null,"T Fabrication","T Fabrication","T Service Mine Plant And Equipment","T Service Mine Plant And Equipment","T Fixed plant","T Fixed plant",null,"T ","T Fixed plant","T Fixed plant",null,"T ","T ",null,"T Mechanical drive transmissions (Non Mobile plant)","T Transmission work (Non EME)",null,null,null,null,"T Inspect and maintain fire hydrants"]
[null,null,"* Perform levelling and alignment of machines and engineering components","* Perform levelling and alignment of machines and engineering components","* Perform levelling and alignment of machines and engineering components","* Perform levelling and alignment of machines and engineering components","* Diagnose and repair mobile plant steering systems","* Diagnose and repair mobile plant steering systems",null,null,"* Diagnose and repair mobile plant steering systems","* Diagnose and repair mobile plant steering systems",null,"* Repair and fit engineering components","* Perform fault diagnosis, installation and removal of bearings",null,"T ","T "]
[null,null,"T ","T General Welding","T Transmission Work (Non EME)","T Transmission Work (Non EME)","T Hydraulic Work","T Hydraulic Work",null,null,"T Hydraulic Work","T Hydraulic Work",null,"T ","T ",null,"T Pneumatic work","T Pneumatic work"]
[null,null,"* Perform gland packing","* Perform gland packing","* Perform gland packing","* Perform gland packing","* Inspect, repair engine induction/exhaust systems","* Inspect, repair engine induction/exhaust systems",null,null,"* Inspect, repair engine induction/exhaust systems","* Inspect, repair engine induction/exhaust systems",null,"* Maintain and repair mechanical drives and mechanical transmission assemblies","* Repair and fit engineering components",null,null,"T "]
[null,null,"T ","T ","T Fabrication","T Fabrication","T Service mine plant and equipment","T Service mine plant and equipment",null,null,"T Service mine plant and equipment","T Service mine plant and equipment",null,"T ","T ",null,null,"T Service fixed plant"]
[null,null,null,"* MDG25 (Valid within 5 years)","* Maintain pneumatic system components","* Maintain pneumatic system components","* Inspect, service and repair tracked type drive and support systems","* Inspect, service and repair tracked type drive and support systems",null,null,"* Inspect, service and repair tracked type drive and support systems","* Inspect, service and repair tracked type drive and support systems",null,"* Perform levelling and alignment of machines and engineering components","* Maintain and repair mechanical drives and mechanical transmission assemblies",null,null,"T "]
[null,null,null,null,"T ","T General Welding","T Transmission work (Non EME)","T Transmission work (Non EME)",null,null,"T Transmission work (Non EME)","T Transmission work (Non EME)",null,"T ","T ",null,null,"T Engine work (ancillary / small engines)"]
[null,null,null,null,"* Maintain pneumatic systems","* Maintain pneumatic systems","* Service and maintain fluid power systems for mobile plant","* Service and maintain fluid power systems for mobile plant",null,null,"* Service and maintain fluid power systems for mobile plant","* Service and maintain fluid power systems for mobile plant",null,"* Assemble fabricated components","* Perform levelling and alignment of machines and engineering components",null,null,"T "]
[null,null,null,null,"T ","T ","T Pneumatic work","T Pneumatic work",null,null,"T Pneumatic work","T Pneumatic work",null,"T ","T ",null,null,"T Fixed plant"]
[null,null,null,null,"* Maintain hydraulic system components","* Maintain hydraulic system components","* Repair engines and associated engine components (heavy vehicle).","* Repair engines and associated engine components (heavy vehicle).",null,null,"* Repair engines and associated engine components (heavy vehicle).","* Repair engines and associated engine components (heavy vehicle).",null,null,"* Assemble fabricated components"]
[null,null,null,null,null,"T ","T Service fixed plant","T Service fixed plant",null,null,"T Service fixed plant","T Service fixed plant"]
[null,null,null,null,null,"* MDG25 (Valid within 5 years)","* Diagnose and repair electronic compression ignition engine management systems","* Diagnose and repair electronic compression ignition engine management systems",null,null,"* Diagnose and repair electronic compression ignition engine management systems","* Diagnose and repair electronic compression ignition engine management systems"]
[null,null,null,null,null,null,"T Mechanical drive / transmission (Non mobile plant)","T Mechanical drive / transmission (Non mobile plant)",null,null,"T Mechanical drive / transmission (Non mobile plant)","T Mechanical drive / transmission (Non mobile plant)"]
[null,null,null,null,null,null,"T ","* MDG25 (Valid within 5 years)",null,null,"T ","* MDG25 Safe Cutting and Welding (Valid within 5 years)"]
[null,null,null,null,null,null,"T Mobile Plant  Unrestricted","T Mobile Plant  Unrestricted",null,null,"T Mobile Plant  Unrestricted","T Mobile Plant  Unrestricted"]
[null,null,null,null,null,null,null,"T ",null,null,null,"T "]
[null,null,null,null,null,null,null,"T General Welding",null,null,null,"T General Welding"]

{"sheet":"Lists","index":3,"n_rows":33,"n_cols":4,"rows_kept":33,"cut":false,"hidden":true,"merged":[]}
[]
[null,null,"Discipline Max 6 Permitted"]
[null,null,"Mechanical"]
[null,null,"Electrical"]
[]
[]
[]
[]
[]
[]
[]
[null,null,"Level of Supervision","Supervision Description"]
[null,null,"Direct","Direct supervision is where a person is under the immediate control and direction of the MAC/Contractor supervisor who must be in attendance at all times."]
[null,null,"General","Requires supervision by a MAC supervisor. The nature of the work, the competence of the person, and understanding of the work needs to be considered to ensure safe and satisfactory work practices are   followed when determining the frequency of supervision attendance on the job."]
[]
[]
[]
[]
[]
[]
[]
[]
[null,null,"Qualifications"]
[]
[null,null,"Cert III Vehicle Automotive"]
[null,null,"Cert III Vehicle Industrial"]
[null,null,"Cert III Vehicle Agricultural"]
[null,null,"Cert III Heavy Vehicle Plant Mechanical"]
[null,null,"Cert III Engineering Diesel Fitting"]
[]
[]
[null,null,"Client Contact Info for Support Dialog: \nUse Alt-Enter to force new line."]
[null,null,"For all Mt Arthur Coal Support Please contact:\n\nDwaine Jones, Mechanical Statutory Engineering, 02 6544 5195.\nRussell Woods, Electrical Statutory Engineering, 02 6544 5289.\n"]

{"sheet":"Competency Working","index":4,"n_rows":105,"n_cols":10,"rows_kept":105,"cut":false,"hidden":true,"merged":[]}
[]
[null,null,null,null,"AllAccepted",{"$f":"IF(OR(CompetencyAreaInput=\"\",COUNTIF(MobilePlantTable,FALSE)>0),FALSE,TRUE)","v":false}]
[]
[]
[null,null,"Selected Competency Area","Checkbox Value","Mandatory","Accepted"]
[3,null,{"$f":"T(IFERROR(INDEX(CompetenciesTable[],$A6,'Workbook Parameters'!$B$3),\"\"))","v":""},false,{"$f":"LEFT(C6)=\"*\"","v":false},{"$f":"IF(E6,D6,TRUE)","v":true},null,false,{"$f":"IF(H6=TRUE,#REF!+1,#REF!)","v":{"$error":"#REF!"}},{"$f":"IF(H6=TRUE,#REF!,\"\")","v":""}]
[4,null,{"$f":"T(IFERROR(INDEX(CompetenciesTable[],$A7,'Workbook Parameters'!$B$3),\"\"))","v":""},false,false,true,null,false,{"$f":"IF(H7=TRUE,I6+1,I6)","v":{"$error":"#REF!"}},{"$f":"IF(H7=TRUE,#REF!,\"\")","v":""}]
[5,null,{"$f":"T(IFERROR(INDEX(CompetenciesTable[],$A8,'Workbook Parameters'!$B$3),\"\"))","v":""},false,false,true,null,false,{"$error":"#REF!"},{"$f":"IF(H8=TRUE,#REF!,\"\")","v":""}]
[6,null,{"$f":"T(IFERROR(INDEX(CompetenciesTable[],$A9,'Workbook Parameters'!$B$3),\"\"))","v":""},false,false,true,null,false,{"$error":"#REF!"},{"$f":"IF(H9=TRUE,#REF!,\"\")","v":""}]
[7,null,{"$f":"T(IFERROR(INDEX(CompetenciesTable[],$A10,'Workbook Parameters'!$B$3),\"\"))","v":""},false,false,true,null,false,{"$error":"#REF!"},{"$f":"IF(H10=TRUE,#REF!,\"\")","v":""}]
[8,null,{"$f":"T(IFERROR(INDEX(CompetenciesTable[],$A11,'Workbook Parameters'!$B$3),\"\"))","v":""},false,false,true,null,false,{"$error":"#REF!"},{"$f":"IF(H11=TRUE,#REF!,\"\")","v":""}]
[9,null,{"$f":"T(IFERROR(INDEX(CompetenciesTable[],$A12,'Workbook Parameters'!$B$3),\"\"))","v":""},false,false,true,null,false,{"$error":"#REF!"},{"$f":"IF(H12=TRUE,#REF!,\"\")","v":""}]
[10,null,{"$f":"T(IFERROR(INDEX(CompetenciesTable[],$A13,'Workbook Parameters'!$B$3),\"\"))","v":""},false,false,true,null,false,{"$error":"#REF!"},{"$f":"IF(H13=TRUE,#REF!,\"\")","v":""}]
[11,null,{"$f":"T(IFERROR(INDEX(CompetenciesTable[],$A14,'Workbook Parameters'!$B$3),\"\"))","v":""},false,false,true,null,false,{"$f":"IF(H14=TRUE,I13+1,I13)","v":{"$error":"#REF!"}},{"$f":"IF(H14=TRUE,#REF!,\"\")","v":""}]
[12,null,{"$f":"T(IFERROR(INDEX(CompetenciesTable[],$A15,'Workbook Parameters'!$B$3),\"\"))","v":""},false,false,true,null,false,{"$error":"#REF!"},{"$f":"IF(H15=TRUE,#REF!,\"\")","v":""}]
[13,null,{"$f":"T(IFERROR(INDEX(CompetenciesTable[],$A16,'Workbook Parameters'!$B$3),\"\"))","v":""},false,false,true,null,false,{"$error":"#REF!"},{"$f":"IF(H16=TRUE,#REF!,\"\")","v":""}]
[14,null,{"$f":"T(IFERROR(INDEX(CompetenciesTable[],$A17,'Workbook Parameters'!$B$3),\"\"))","v":""},false,false,true,null,false,{"$error":"#REF!"},{"$f":"IF(H17=TRUE,#REF!,\"\")","v":""}]
[15,null,{"$f":"T(IFERROR(INDEX(CompetenciesTable[],$A18,'Workbook Parameters'!$B$3),\"\"))","v":""},false,false,true,null,false,{"$error":"#REF!"},{"$f":"IF(H18=TRUE,#REF!,\"\")","v":""}]
[16,null,{"$f":"T(IFERROR(INDEX(CompetenciesTable[],$A19,'Workbook Parameters'!$B$3),\"\"))","v":""},false,false,true,null,false,{"$error":"#REF!"},{"$f":"IF(H19=TRUE,#REF!,\"\")","v":""}]
[17,null,{"$f":"T(IFERROR(INDEX(CompetenciesTable[],$A20,'Workbook Parameters'!$B$3),\"\"))","v":""},false,false,true,null,false,{"$error":"#REF!"},{"$f":"IF(H20=TRUE,#REF!,\"\")","v":""}]
[18,null,{"$f":"T(IFERROR(INDEX(CompetenciesTable[],$A21,'Workbook Parameters'!$B$3),\"\"))","v":""},false,false,true,null,false,{"$error":"#REF!"},{"$f":"IF(H21=TRUE,#REF!,\"\")","v":""}]
[19,null,{"$f":"T(IFERROR(INDEX(CompetenciesTable[],$A22,'Workbook Parameters'!$B$3),\"\"))","v":""},false,false,true,null,false,{"$error":"#REF!"},{"$f":"IF(H22=TRUE,#REF!,\"\")","v":""}]
[20,null,{"$f":"T(IFERROR(INDEX(CompetenciesTable[],$A23,'Workbook Parameters'!$B$3),\"\"))","v":""},false,false,true,null,false,{"$error":"#REF!"},{"$f":"IF(H23=TRUE,#REF!,\"\")","v":""}]
[21,null,{"$f":"T(IFERROR(INDEX(CompetenciesTable[],$A24,'Workbook Parameters'!$B$3),\"\"))","v":""},false,false,true,null,false,{"$error":"#REF!"},{"$f":"IF(H24=TRUE,#REF!,\"\")","v":""}]
[22,null,{"$f":"T(IFERROR(INDEX(CompetenciesTable[],$A25,'Workbook Parameters'!$B$3),\"\"))","v":""},false,false,true,null,false,{"$error":"#REF!"},{"$f":"IF(H25=TRUE,#REF!,\"\")","v":""}]
[23,null,{"$f":"T(IFERROR(INDEX(CompetenciesTable[],$A26,'Workbook Parameters'!$B$3),\"\"))","v":""},false,false,true,null,false,{"$error":"#REF!"},{"$f":"IF(H26=TRUE,#REF!,\"\")","v":""}]
[24,null,{"$f":"T(IFERROR(INDEX(CompetenciesTable[],$A27,'Workbook Parameters'!$B$3),\"\"))","v":""},false,false,true,null,false,{"$error":"#REF!"},{"$f":"IF(H27=TRUE,#REF!,\"\")","v":""}]
[25,null,{"$f":"T(IFERROR(INDEX(CompetenciesTable[],$A28,'Workbook Parameters'!$B$3),\"\"))","v":""},false,false,true,null,false,{"$error":"#REF!"},{"$f":"IF(H28=TRUE,#REF!,\"\")","v":""}]
[26,null,{"$f":"T(IFERROR(INDEX(CompetenciesTable[],$A29,'Workbook Parameters'!$B$3),\"\"))","v":""},false,false,true,null,false,{"$error":"#REF!"},{"$f":"IF(H29=TRUE,#REF!,\"\")","v":""}]
[27,null,{"$f":"T(IFERROR(INDEX(CompetenciesTable[],$A30,'Workbook Parameters'!$B$3),\"\"))","v":""},false,false,true,null,false,{"$error":"#REF!"},{"$f":"IF(H30=TRUE,#REF!,\"\")","v":""}]
[28,null,{"$f":"T(IFERROR(INDEX(CompetenciesTable[],$A31,'Workbook Parameters'!$B$3),\"\"))","v":""},false,false,true,null,false,{"$error":"#REF!"},{"$f":"IF(H31=TRUE,#REF!,\"\")","v":""}]
[29,null,{"$f":"T(IFERROR(INDEX(CompetenciesTable[],$A32,'Workbook Parameters'!$B$3),\"\"))","v":""},false,false,true,null,false,{"$f":"IF(H32=TRUE,I31+1,I31)","v":{"$error":"#REF!"}},{"$f":"IF(H32=TRUE,#REF!,\"\")","v":""}]
[30,null,{"$f":"T(IFERROR(INDEX(CompetenciesTable[],$A33,'Workbook Parameters'!$B$3),\"\"))","v":""},false,false,true,null,false,{"$error":"#REF!"},{"$f":"IF(H33=TRUE,#REF!,\"\")","v":""}]
[31,null,{"$f":"T(IFERROR(INDEX(CompetenciesTable[],$A34,'Workbook Parameters'!$B$3),\"\"))","v":""},false,false,true,null,false,{"$f":"IF(H34=TRUE,I33+1,I33)","v":{"$error":"#REF!"}},{"$f":"IF(H34=TRUE,#REF!,\"\")","v":""}]
[32,null,{"$f":"T(IFERROR(INDEX(CompetenciesTable[],$A35,'Workbook Parameters'!$B$3),\"\"))","v":""},false,false,true,null,false,{"$error":"#REF!"},{"$f":"IF(H35=TRUE,#REF!,\"\")","v":""}]
[33,null,{"$f":"T(IFERROR(INDEX(CompetenciesTable[],$A36,'Workbook Parameters'!$B$3),\"\"))","v":""},false,false,true,null,false,{"$error":"#REF!"},{"$f":"IF(H36=TRUE,#REF!,\"\")","v":""}]
[34,null,{"$f":"T(IFERROR(INDEX(CompetenciesTable[],$A37,'Workbook Parameters'!$B$3),\"\"))","v":""},false,false,true,null,false,{"$error":"#REF!"},{"$f":"IF(H37=TRUE,#REF!,\"\")","v":""}]
[35,null,{"$f":"T(IFERROR(INDEX(CompetenciesTable[],$A38,'Workbook Parameters'!$B$3),\"\"))","v":""},false,{"$f":"LEFT(C38)=\"*\"","v":false},{"$f":"IF(E38,D38,TRUE)","v":true},null,false,{"$error":"#REF!"},{"$f":"IF(H38=TRUE,#REF!,\"\")","v":""}]
[36,null,{"$f":"T(IFERROR(INDEX(CompetenciesTable[],$A39,'Workbook Parameters'!$B$3),\"\"))","v":""},false,false,true,null,false,{"$error":"#REF!"},{"$f":"IF(H39=TRUE,#REF!,\"\")","v":""}]
[37,null,{"$f":"T(IFERROR(INDEX(CompetenciesTable[],$A40,'Workbook Parameters'!$B$3),\"\"))","v":""},false,false,true,null,false,{"$error":"#REF!"},{"$f":"IF(H40=TRUE,#REF!,\"\")","v":""}]
[38,null,{"$f":"T(IFERROR(INDEX(CompetenciesTable[],$A41,'Workbook Parameters'!$B$3),\"\"))","v":""},false,false,true,null,false,{"$error":"#REF!"},{"$f":"IF(H41=TRUE,#REF!,\"\")","v":""}]
[39,null,{"$f":"T(IFERROR(INDEX(CompetenciesTable[],$A42,'Workbook Parameters'!$B$3),\"\"))","v":""},false,false,true,null,false,{"$error":"#REF!"},{"$f":"IF(H42=TRUE,#REF!,\"\")","v":""}]
[40,null,{"$f":"T(IFERROR(INDEX(CompetenciesTable[],$A43,'Workbook Parameters'!$B$3),\"\"))","v":""},false,false,true,null,false,{"$error":"#REF!"},{"$f":"IF(H43=TRUE,#REF!,\"\")","v":""}]
[41,null,{"$f":"T(IFERROR(INDEX(CompetenciesTable[],$A44,'Workbook Parameters'!$B$3),\"\"))","v":""},false,false,true,null,false,{"$error":"#REF!"},{"$f":"IF(H44=TRUE,#REF!,\"\")","v":""}]
[42,null,{"$f":"T(IFERROR(INDEX(CompetenciesTable[],$A45,'Workbook Parameters'!$B$3),\"\"))","v":""},false,false,true,null,false,{"$error":"#REF!"},{"$f":"IF(H45=TRUE,#REF!,\"\")","v":""}]
[43,null,{"$f":"T(IFERROR(INDEX(CompetenciesTable[],$A46,'Workbook Parameters'!$B$3),\"\"))","v":""},false,false,true,null,false,{"$error":"#REF!"},{"$f":"IF(H46=TRUE,#REF!,\"\")","v":""}]
[44,null,{"$f":"T(IFERROR(INDEX(CompetenciesTable[],$A47,'Workbook Parameters'!$B$3),\"\"))","v":""},false,false,true,null,false,{"$error":"#REF!"},{"$f":"IF(H47=TRUE,#REF!,\"\")","v":""}]
[45,null,{"$f":"T(IFERROR(INDEX(CompetenciesTable[],$A48,'Workbook Parameters'!$B$3),\"\"))","v":""},false,false,true,null,false,{"$f":"IF(H48=TRUE,I47+1,I47)","v":{"$error":"#REF!"}},{"$f":"IF(H48=TRUE,#REF!,\"\")","v":""}]
[46,null,{"$f":"T(IFERROR(INDEX(CompetenciesTable[],$A49,'Workbook Parameters'!$B$3),\"\"))","v":""},false,false,true,null,false,{"$error":"#REF!"},{"$f":"IF(H49=TRUE,#REF!,\"\")","v":""}]
[47,null,{"$f":"T(IFERROR(INDEX(CompetenciesTable[],$A50,'Workbook Parameters'!$B$3),\"\"))","v":""},false,false,true,null,false,{"$error":"#REF!"},{"$f":"IF(H50=TRUE,#REF!,\"\")","v":""}]
[48,null,{"$f":"T(IFERROR(INDEX(CompetenciesTable[],$A51,'Workbook Parameters'!$B$3),\"\"))","v":""},false,false,true,null,false,{"$error":"#REF!"},{"$f":"IF(H51=TRUE,#REF!,\"\")","v":""}]
[49,null,{"$f":"T(IFERROR(INDEX(CompetenciesTable[],$A52,'Workbook Parameters'!$B$3),\"\"))","v":""},false,false,true,null,false,{"$error":"#REF!"},{"$f":"IF(H52=TRUE,#REF!,\"\")","v":""}]
[50,null,{"$f":"T(IFERROR(INDEX(CompetenciesTable[],$A53,'Workbook Parameters'!$B$3),\"\"))","v":""},false,false,true,null,false,{"$error":"#REF!"},{"$f":"IF(H53=TRUE,#REF!,\"\")","v":""}]
[51,null,{"$f":"T(IFERROR(INDEX(CompetenciesTable[],$A54,'Workbook Parameters'!$B$3),\"\"))","v":""},false,false,true,null,false,{"$error":"#REF!"},{"$f":"IF(H54=TRUE,#REF!,\"\")","v":""}]
[52,null,{"$f":"T(IFERROR(INDEX(CompetenciesTable[],$A55,'Workbook Parameters'!$B$3),\"\"))","v":""},false,false,true,null,false,{"$error":"#REF!"},{"$f":"IF(H55=TRUE,#REF!,\"\")","v":""}]
[53,null,{"$f":"T(IFERROR(INDEX(CompetenciesTable[],$A56,'Workbook Parameters'!$B$3),\"\"))","v":""},false,false,true,null,false,{"$error":"#REF!"},{"$f":"IF(H56=TRUE,#REF!,\"\")","v":""}]
[54,null,{"$f":"T(IFERROR(INDEX(CompetenciesTable[],$A57,'Workbook Parameters'!$B$3),\"\"))","v":""},false,false,true,null,false,{"$error":"#REF!"},{"$f":"IF(H57=TRUE,#REF!,\"\")","v":""}]
[55,null,{"$f":"T(IFERROR(INDEX(CompetenciesTable[],$A58,'Workbook Parameters'!$B$3),\"\"))","v":""},false,false,true,null,false,{"$error":"#REF!"},{"$f":"IF(H58=TRUE,#REF!,\"\")","v":""}]
[56,null,{"$f":"T(IFERROR(INDEX(CompetenciesTable[],$A59,'Workbook Parameters'!$B$3),\"\"))","v":""},false,false,true,null,false,{"$error":"#REF!"},{"$f":"IF(H59=TRUE,#REF!,\"\")","v":""}]
[57,null,{"$f":"T(IFERROR(INDEX(CompetenciesTable[],$A60,'Workbook Parameters'!$B$3),\"\"))","v":""},false,false,true,null,false,{"$error":"#REF!"},{"$f":"IF(H60=TRUE,#REF!,\"\")","v":""}]
[58,null,{"$f":"T(IFERROR(INDEX(CompetenciesTable[],$A61,'Workbook Parameters'!$B$3),\"\"))","v":""},false,false,true,null,false,{"$error":"#REF!"},{"$f":"IF(H61=TRUE,#REF!,\"\")","v":""}]
[59,null,{"$f":"T(IFERROR(INDEX(CompetenciesTable[],$A62,'Workbook Parameters'!$B$3),\"\"))","v":""},false,false,true,null,false,{"$error":"#REF!"},{"$f":"IF(H62=TRUE,#REF!,\"\")","v":""}]
[60,null,{"$f":"T(IFERROR(INDEX(CompetenciesTable[],$A63,'Workbook Parameters'!$B$3),\"\"))","v":""},false,false,true,null,false,{"$error":"#REF!"},{"$f":"IF(H63=TRUE,#REF!,\"\")","v":""}]
[61,null,{"$f":"T(IFERROR(INDEX(CompetenciesTable[],$A64,'Workbook Parameters'!$B$3),\"\"))","v":""},false,false,true,null,false,{"$error":"#REF!"},{"$f":"IF(H64=TRUE,#REF!,\"\")","v":""}]
[62,null,{"$f":"T(IFERROR(INDEX(CompetenciesTable[],$A65,'Workbook Parameters'!$B$3),\"\"))","v":""},false,false,true,null,false,{"$error":"#REF!"},{"$f":"IF(H65=TRUE,#REF!,\"\")","v":""}]
[63,null,{"$f":"T(IFERROR(INDEX(CompetenciesTable[],$A66,'Workbook Parameters'!$B$3),\"\"))","v":""},false,false,true,null,false,{"$error":"#REF!"},{"$f":"IF(H66=TRUE,#REF!,\"\")","v":""}]
[64,null,{"$f":"T(IFERROR(INDEX(CompetenciesTable[],$A67,'Workbook Parameters'!$B$3),\"\"))","v":""},false,false,true,null,false,{"$error":"#REF!"},{"$f":"IF(H67=TRUE,#REF!,\"\")","v":""}]
[65,null,{"$f":"T(IFERROR(INDEX(CompetenciesTable[],$A68,'Workbook Parameters'!$B$3),\"\"))","v":""},false,false,true,null,false,{"$error":"#REF!"},{"$f":"IF(H68=TRUE,#REF!,\"\")","v":""}]
[66,null,{"$f":"T(IFERROR(INDEX(CompetenciesTable[],$A69,'Workbook Parameters'!$B$3),\"\"))","v":""},false,false,true,null,false,{"$error":"#REF!"},{"$f":"IF(H69=TRUE,#REF!,\"\")","v":""}]
[67,null,{"$f":"T(IFERROR(INDEX(CompetenciesTable[],$A70,'Workbook Parameters'!$B$3),\"\"))","v":""},false,{"$f":"LEFT(C70)=\"*\"","v":false},{"$f":"IF(E70,D70,TRUE)","v":true},null,false,{"$error":"#REF!"},{"$f":"IF(H70=TRUE,#REF!,\"\")","v":""}]
[68,null,{"$f":"T(IFERROR(INDEX(CompetenciesTable[],$A71,'Workbook Parameters'!$B$3),\"\"))","v":""},false,false,true,null,false,{"$error":"#REF!"},{"$f":"IF(H71=TRUE,#REF!,\"\")","v":""}]
[69,null,{"$f":"T(IFERROR(INDEX(CompetenciesTable[],$A72,'Workbook Parameters'!$B$3),\"\"))","v":""},false,false,true,null,false,{"$error":"#REF!"},{"$f":"IF(H72=TRUE,#REF!,\"\")","v":""}]
[70,null,{"$f":"T(IFERROR(INDEX(CompetenciesTable[],$A73,'Workbook Parameters'!$B$3),\"\"))","v":""},false,false,true,null,false,{"$error":"#REF!"},{"$f":"IF(H73=TRUE,#REF!,\"\")","v":""}]
[71,null,{"$f":"T(IFERROR(INDEX(CompetenciesTable[],$A74,'Workbook Parameters'!$B$3),\"\"))","v":""},false,false,true,null,false,{"$error":"#REF!"},{"$f":"IF(H74=TRUE,#REF!,\"\")","v":""}]
[72,null,{"$f":"T(IFERROR(INDEX(CompetenciesTable[],$A75,'Workbook Parameters'!$B$3),\"\"))","v":""},false,false,true,null,false,{"$error":"#REF!"},{"$f":"IF(H75=TRUE,#REF!,\"\")","v":""}]
[73,null,{"$f":"T(IFERROR(INDEX(CompetenciesTable[],$A76,'Workbook Parameters'!$B$3),\"\"))","v":""},false,false,true,null,false,{"$error":"#REF!"},{"$f":"IF(H76=TRUE,#REF!,\"\")","v":""}]
[74,null,{"$f":"T(IFERROR(INDEX(CompetenciesTable[],$A77,'Workbook Parameters'!$B$3),\"\"))","v":""},false,false,true,null,false,{"$error":"#REF!"},{"$f":"IF(H77=TRUE,#REF!,\"\")","v":""}]
[75,null,{"$f":"T(IFERROR(INDEX(CompetenciesTable[],$A78,'Workbook Parameters'!$B$3),\"\"))","v":""},false,false,true,null,false,{"$error":"#REF!"},{"$f":"IF(H78=TRUE,#REF!,\"\")","v":""}]
[76,null,{"$f":"T(IFERROR(INDEX(CompetenciesTable[],$A79,'Workbook Parameters'!$B$3),\"\"))","v":""},false,false,true,null,false,{"$error":"#REF!"},{"$f":"IF(H79=TRUE,#REF!,\"\")","v":""}]
[77,null,{"$f":"T(IFERROR(INDEX(CompetenciesTable[],$A80,'Workbook Parameters'!$B$3),\"\"))","v":""},false,false,true,null,false,{"$error":"#REF!"},{"$f":"IF(H80=TRUE,#REF!,\"\")","v":""}]
[78,null,{"$f":"T(IFERROR(INDEX(CompetenciesTable[],$A81,'Workbook Parameters'!$B$3),\"\"))","v":""},false,false,true,null,false,{"$error":"#REF!"},{"$f":"IF(H81=TRUE,#REF!,\"\")","v":""}]
[79,null,{"$f":"T(IFERROR(INDEX(CompetenciesTable[],$A82,'Workbook Parameters'!$B$3),\"\"))","v":""},false,false,true,null,false,{"$error":"#REF!"},{"$f":"IF(H82=TRUE,#REF!,\"\")","v":""}]
[80,null,{"$f":"T(IFERROR(INDEX(CompetenciesTable[],$A83,'Workbook Parameters'!$B$3),\"\"))","v":""},false,false,true,null,false,{"$error":"#REF!"},{"$f":"IF(H83=TRUE,#REF!,\"\")","v":""}]
[81,null,{"$f":"T(IFERROR(INDEX(CompetenciesTable[],$A84,'Workbook Parameters'!$B$3),\"\"))","v":""},false,false,true,null,false,{"$error":"#REF!"},{"$f":"IF(H84=TRUE,#REF!,\"\")","v":""}]
[82,null,{"$f":"T(IFERROR(INDEX(CompetenciesTable[],$A85,'Workbook Parameters'!$B$3),\"\"))","v":""},false,false,true,null,false,{"$error":"#REF!"},{"$f":"IF(H85=TRUE,#REF!,\"\")","v":""}]
[83,null,{"$f":"T(IFERROR(INDEX(CompetenciesTable[],$A86,'Workbook Parameters'!$B$3),\"\"))","v":""},false,false,true,null,false,{"$error":"#REF!"},{"$f":"IF(H86=TRUE,#REF!,\"\")","v":""}]
[84,null,{"$f":"T(IFERROR(INDEX(CompetenciesTable[],$A87,'Workbook Parameters'!$B$3),\"\"))","v":""},false,false,true,null,false,{"$error":"#REF!"},{"$f":"IF(H87=TRUE,#REF!,\"\")","v":""}]
[85,null,{"$f":"T(IFERROR(INDEX(CompetenciesTable[],$A88,'Workbook Parameters'!$B$3),\"\"))","v":""},false,false,true,null,false,{"$error":"#REF!"},{"$f":"IF(H88=TRUE,#REF!,\"\")","v":""}]
[86,null,{"$f":"T(IFERROR(INDEX(CompetenciesTable[],$A89,'Workbook Parameters'!$B$3),\"\"))","v":""},false,false,true,null,false,{"$error":"#REF!"},{"$f":"IF(H89=TRUE,#REF!,\"\")","v":""}]
[87,null,{"$f":"T(IFERROR(INDEX(CompetenciesTable[],$A90,'Workbook Parameters'!$B$3),\"\"))","v":""},false,false,true,null,false,{"$error":"#REF!"},{"$f":"IF(H90=TRUE,#REF!,\"\")","v":""}]
[88,null,{"$f":"T(IFERROR(INDEX(CompetenciesTable[],$A91,'Workbook Parameters'!$B$3),\"\"))","v":""},false,false,true,null,false,{"$error":"#REF!"},{"$f":"IF(H91=TRUE,#REF!,\"\")","v":""}]
[89,null,{"$f":"T(IFERROR(INDEX(CompetenciesTable[],$A92,'Workbook Parameters'!$B$3),\"\"))","v":""},false,false,true,null,false,{"$error":"#REF!"},{"$f":"IF(H92=TRUE,#REF!,\"\")","v":""}]
[90,null,{"$f":"T(IFERROR(INDEX(CompetenciesTable[],$A93,'Workbook Parameters'!$B$3),\"\"))","v":""},false,false,true,null,false,{"$error":"#REF!"},{"$f":"IF(H93=TRUE,#REF!,\"\")","v":""}]
[91,null,{"$f":"T(IFERROR(INDEX(CompetenciesTable[],$A94,'Workbook Parameters'!$B$3),\"\"))","v":""},false,false,true,null,false,{"$error":"#REF!"},{"$f":"IF(H94=TRUE,#REF!,\"\")","v":""}]
[92,null,{"$f":"T(IFERROR(INDEX(CompetenciesTable[],$A95,'Workbook Parameters'!$B$3),\"\"))","v":""},false,false,true,null,false,{"$error":"#REF!"},{"$f":"IF(H95=TRUE,#REF!,\"\")","v":""}]
[93,null,{"$f":"T(IFERROR(INDEX(CompetenciesTable[],$A96,'Workbook Parameters'!$B$3),\"\"))","v":""},false,false,true,null,false,{"$error":"#REF!"},{"$f":"IF(H96=TRUE,#REF!,\"\")","v":""}]
[94,null,{"$f":"T(IFERROR(INDEX(CompetenciesTable[],$A97,'Workbook Parameters'!$B$3),\"\"))","v":""},false,false,true,null,false,{"$error":"#REF!"},{"$f":"IF(H97=TRUE,#REF!,\"\")","v":""}]
[95,null,{"$f":"T(IFERROR(INDEX(CompetenciesTable[],$A98,'Workbook Parameters'!$B$3),\"\"))","v":""},false,false,true,null,false,{"$error":"#REF!"},{"$f":"IF(H98=TRUE,#REF!,\"\")","v":""}]
[96,null,{"$f":"T(IFERROR(INDEX(CompetenciesTable[],$A99,'Workbook Parameters'!$B$3),\"\"))","v":""},false,false,true,null,false,{"$error":"#REF!"},{"$f":"IF(H99=TRUE,#REF!,\"\")","v":""}]
[97,null,{"$f":"T(IFERROR(INDEX(CompetenciesTable[],$A100,'Workbook Parameters'!$B$3),\"\"))","v":""},false,false,true,null,false,{"$error":"#REF!"},{"$f":"IF(H100=TRUE,#REF!,\"\")","v":""}]
[98,null,{"$f":"T(IFERROR(INDEX(CompetenciesTable[],$A101,'Workbook Parameters'!$B$3),\"\"))","v":""},false,false,true,null,false,{"$error":"#REF!"},{"$f":"IF(H101=TRUE,#REF!,\"\")","v":""}]
[99,null,{"$f":"T(IFERROR(INDEX(CompetenciesTable[],$A102,'Workbook Parameters'!$B$3),\"\"))","v":""},false,false,{"$f":"IF(E102,D102,TRUE)","v":true},null,false,{"$error":"#REF!"},{"$f":"IF(H102=TRUE,#REF!,\"\")","v":""}]
[100,null,{"$f":"T(IFERROR(INDEX(CompetenciesTable[],$A103,'Workbook Parameters'!$B$3),\"\"))","v":""},false,false,true,null,false,{"$error":"#REF!"},{"$f":"IF(H103=TRUE,#REF!,\"\")","v":""}]
[101,null,{"$f":"T(IFERROR(INDEX(CompetenciesTable[],$A104,'Workbook Parameters'!$B$3),\"\"))","v":""},false,false,true,null,false,{"$error":"#REF!"},{"$f":"IF(H104=TRUE,#REF!,\"\")","v":""}]
[102,null,{"$f":"T(IFERROR(INDEX(CompetenciesTable[],$A105,'Workbook Parameters'!$B$3),\"\"))","v":""},false,false,true,null,false,{"$error":"#REF!"},{"$f":"IF(H105=TRUE,#REF!,\"\")","v":""}]

{"sheet":"Workbook Parameters","index":5,"n_rows":5,"n_cols":2,"rows_kept":5,"cut":false,"hidden":true,"merged":[]}
[]
[]
["CompetencyColumn",{"$f":"MATCH(CompetencyAreaInput,CompetenciesTable[#Headers],0)","v":{"$error":"#N/A"}}]
["SupervisionRequired",{"$f":"T(IFERROR(INDEX(CompetenciesTable[],2,B3),\"\"))","v":""}]
["AdminAccess",false]